fUSD/lending_fUSD_20250417
["ID","MTS","AMOUNT","RATE_DAILY","PERIOD"]
[358258970,1744877437127,-500.0,0.00079452,120]
[358258971,1744877437137,-505.34,0.00079452,120]
[358258972,1744877437146,-500.0,0.00079452,120]
[358258973,1744877437155,-530.94546063,0.00079452,120]
[358258974,1744877437164,-531.62210074,0.00079452,120]
[358258975,1744877437173,-500.0,0.00079452,120]
[358258976,1744877437183,-500.0,0.00079452,120]
[358258977,1744877437192,-638.14905192,0.00079452,120]
[358258978,1744877437201,-2000.0,0.00079452,120]
[358258979,1744877437211,-500.0,0.00079452,120]
[358258980,1744877437221,-551.28121874,0.00079452,120]
[358258981,1744877437230,-2824.69,0.00079452,120]
[358258982,1744877437239,-500.0,0.00079452,120]
[358258983,1744877437248,-500.0,0.00079452,120]
[358258984,1744877437257,-500.0,0.00079452,120]
[358258985,1744877437266,-500.0,0.00079452,120]
[358258986,1744877437275,-160.663922,0.00079452,120]
[358258987,1744877437284,-500.0,0.00079452,120]
[358258988,1744877437293,-849.71,0.00079452,120]
[358258989,1744877437302,-500.0,0.00079452,120]
[358258990,1744877437311,-312.076143,0.00079452,120]
[358258991,1744877437320,-500.0,0.00079452,120]
[358258992,1744877437329,-500.0,0.00079452,120]
[358258993,1744877437339,-538.9751282,0.00079452,120]
[358258994,1744877437348,-500.0,0.00079452,120]
[358258995,1744877437357,-500.0,0.00079452,120]
[358258996,1744877437365,-500.0,0.00079452,120]
[358258997,1744877437374,-500.0,0.00079452,120]
[358258998,1744877437381,-500.0,0.00079452,120]
[358258999,1744877437389,-542.69282103,0.00079452,120]
[358259000,1744877437397,-500.0,0.00079452,120]
[358259001,1744877437405,-500.0,0.00079452,120]
[358259002,1744877437413,-841.15,0.00079452,120]
[358259003,1744877437422,-500.0,0.00079452,120]
[358259004,1744877437431,-500.0,0.00079452,120]
[358259005,1744877437440,-500.0,0.00079452,120]
[358259006,1744877437449,-783.83,0.00079452,120]
[358259007,1744877437458,-661.7,0.00079452,120]
[358259008,1744877437466,-500.0,0.00079452,120]
[358259009,1744877437475,-500.0,0.00079452,120]
[358259010,1744877437485,-500.0,0.00079452,120]
[358259011,1744877437495,-500.0,0.00079452,120]
[358259012,1744877437504,-500.0,0.00079452,120]
[358259013,1744877437513,-500.0,0.00079452,120]
[358259014,1744877437523,-500.0,0.00079452,120]
[358259015,1744877437536,-500.0,0.00079452,120]
[358259016,1744877437546,-500.0,0.00079452,120]
[358259017,1744877437556,-500.0,0.00079452,120]
[358259018,1744877437566,-500.0,0.00079452,120]
[358259019,1744877437576,-181.2124781,0.00079452,120]
[358259020,1744877437585,-254.3070896,0.00079452,120]
[358259021,1744877437595,-795.96,0.00079452,120]
[358259022,1744877437605,-500.0,0.00079452,120]
[358259023,1744877437614,-500.0,0.00079452,120]
[358259024,1744877437626,-500.0,0.00079452,120]
[358259025,1744877437635,-500.0,0.00079452,120]
[358259026,1744877437645,-500.0,0.00079452,120]
[358259027,1744877437654,-500.0,0.00079452,120]
[358259028,1744877437663,-500.0,0.00079452,120]
[358259029,1744877437672,-500.0,0.00079452,120]
[358259030,1744877437682,-500.0,0.00079452,120]
[358259031,1744877437691,-500.0,0.00079452,120]
[358259032,1744877437700,-500.0,0.00079452,120]
[358259033,1744877437708,-500.0,0.00079452,120]
[358259034,1744877437716,-500.0,0.00079452,120]
[358259035,1744877437725,-500.0,0.00079452,120]
[358259036,1744877437735,-500.0,0.00079452,120]
[358259037,1744877437744,-500.0,0.00079452,120]
[358259038,1744877437754,-500.0,0.00079452,120]
[358259039,1744877437763,-500.0,0.00079452,120]
[358259040,1744877437772,-548.9525522,0.00079452,120]
[358259041,1744877437781,-500.0,0.00079452,120]
[358259042,1744877437790,-500.0,0.00079452,120]
[358259043,1744877437802,-500.0,0.00079452,120]
[358259044,1744877437811,-500.0,0.00079452,120]
[358259045,1744877437820,-505.5,0.00079452,120]
[358259046,1744877437830,-500.0,0.00079452,120]
[358259047,1744877437839,-500.0,0.00079452,120]
[358259048,1744877437849,-500.0,0.00079452,120]
[358259049,1744877437859,-632.56903775,0.00079452,120]
[358259050,1744877437868,-1704.96,0.00079452,120]
[358259051,1744877437878,-1117.16,0.00079452,120]
[358259052,1744877437887,-502.79,0.00079452,120]
[358259053,1744877437896,-1306.39,0.00079452,120]
[358259054,1744877437906,-583.72,0.00079452,120]
[358259055,1744877437915,-572.17,0.00079452,120]
[358259056,1744877437924,-500.0,0.00079452,30]
[358259057,1744877437933,-500.0,0.00079452,120]
[358259058,1744877437943,-500.0,0.00079452,120]
[358259059,1744877437951,-500.0,0.00079452,120]
[358259060,1744877437960,-500.0,0.00079452,120]
[358259061,1744877437969,-500.0,0.00079452,120]
[358259062,1744877437979,-500.0,0.00079452,120]
[358259063,1744877437988,-500.0,0.00079452,120]
[358259064,1744877437997,-500.0,0.00079452,120]
[358259065,1744877438006,-500.0,0.00079452,120]
[358259066,1744877438015,-500.0,0.00079452,120]
[358259067,1744877438024,-597.13,0.00079452,120]
[358259068,1744877438033,-500.0,0.00079452,120]
[358259069,1744877438043,-500.0,0.00079452,120]
[358259070,1744877438052,-500.0,0.00079452,120]
[358259071,1744877438061,-500.0,0.00079452,120]
[358259072,1744877438071,-500.0,0.00079452,120]
[358259073,1744877438080,-552.40630244,0.00079452,120]
[358259074,1744877438090,-500.0,0.00079452,120]
[358259075,1744877438099,-500.0,0.00079452,120]
[358259076,1744877438108,-2039.5,0.00079452,120]
[358259078,1744877438272,-500.0,0.00079452,120]
[358259079,1744877438282,-500.0,0.00079452,120]
[358259080,1744877438291,-500.0,0.00079452,120]
[358259081,1744877438301,-996.39,0.00079452,120]
[358259082,1744877438311,-637.71,0.00079452,120]
[358259083,1744877438320,-230.87,0.00079452,120]
[358259084,1744877438330,-598.35,0.00079452,120]
[358259085,1744877438340,-575.34,0.00079452,120]
[358259087,1744877438350,-719.55,0.00079452,120]
[358259089,1744877438359,-500.0,0.00079452,120]
[358259091,1744877438369,-500.0,0.00079452,120]
[358259093,1744877438378,-573.78,0.00079452,30]
[358259094,1744877438387,-222.6683693,0.00080821,120]
[358259095,1744877438397,-1000.0,0.00089,120]
[358259096,1744877438406,-6247.1410848,0.0008996,6]
[358259097,1744877438416,-10443.385552,0.0008997,7]
[358259098,1744877438425,-6247.1410848,0.0008997,6]
[358259099,1744877438435,-5000.0,0.0009,2]
[358259100,1744877438446,-6247.1410848,0.0009587,7]
[358259101,1744877438455,-1500.0,0.00096,120]
[358259102,1744877438465,-6247.1410848,0.0009998,7]
[358259103,1744877438474,-10443.385552,0.0009999,8]
[358259104,1744877438485,-5000.0,0.001,120]
[358259105,1744877438494,-3252.88307491,0.001,30]
[358259106,1744877438505,-337.845,0.001,120]
[358259107,1744877438514,-6247.1410848,0.00101359,7]
[358259108,1744877438523,-248.68497201,0.00104009,99]
[358259110,1744877438537,-6247.1410848,0.00104079,7]
[358259111,1744877438547,-10443.385552,0.00104089,8]
[358259112,1744877438557,-12494.2821696,0.00104089,7]
[358259113,1744877438567,-20886.7711039,0.00104099,8]
[358259114,1744877438576,-24988.5643392,0.00104099,7]
[358259115,1744877438586,-417.65,0.00104109,120]
[358259116,1744877438595,-500.0,0.00104109,120]
[358259117,1744877438607,-500.0,0.00104109,120]
[358259118,1744877438616,-505.34,0.00104109,120]
[358259119,1744877438625,-490.87,0.00104109,120]
[358259120,1744877438635,-500.0,0.00104109,120]
[358259121,1744877438644,-2087.29587474,0.00104109,120]
[358259122,1744877438654,-500.0,0.00104109,120]
[358259123,1744877438663,-2824.69,0.00104109,120]
[358259124,1744877438673,-500.0,0.00104109,120]
[358259125,1744877438682,-500.0,0.00104109,120]
[358259126,1744877438691,-500.0,0.00104109,120]
[358259127,1744877438700,-500.0,0.00104109,120]
[358259128,1744877438709,-849.71,0.00104109,120]
[358259129,1744877438719,-500.0,0.00104109,120]
[358259130,1744877438729,-500.0,0.00104109,120]
[358259131,1744877438740,-247.97,0.00104109,120]
[358259132,1744877438749,-500.0,0.00104109,120]
[358259133,1744877438759,-500.0,0.00104109,120]
[358259134,1744877438768,-395.8392905,0.00104109,120]
[358259135,1744877438777,-500.0,0.00104109,120]
[358259136,1744877438787,-500.0,0.00104109,120]
[358259137,1744877438796,-841.15,0.00104109,120]
[358259138,1744877438805,-500.0,0.00104109,120]
[358259139,1744877438814,-342.30821531,0.00104109,120]
[358259140,1744877438823,-500.0,0.00104109,120]
[358259141,1744877438833,-783.83,0.00104109,120]
[358259142,1744877438842,-661.7,0.00104109,120]
[358259143,1744877438851,-500.0,0.00104109,120]
[358259144,1744877438861,-500.0,0.00104109,120]
[358259145,1744877438870,-500.0,0.00104109,120]
[358259146,1744877438879,-500.0,0.00104109,120]
[358259147,1744877438889,-500.0,0.00104109,120]
[358259148,1744877438898,-500.0,0.00104109,120]
[358259149,1744877438908,-500.0,0.00104109,120]
[358259150,1744877438917,-500.0,0.00104109,120]
[358259151,1744877438927,-500.0,0.00104109,120]
[358259152,1744877438936,-399.56,0.00104109,120]
[358259154,1744877438946,-795.96,0.00104109,120]
[358259155,1744877438955,-500.0,0.00104109,120]
[358259157,1744877438964,-500.0,0.00104109,120]
[358259159,1744877438974,-500.0,0.00104109,120]
[358259161,1744877438983,-500.0,0.00104109,120]
[358259163,1744877438992,-500.0,0.00104109,120]
[358259164,1744877439001,-500.0,0.00104109,120]
[358259166,1744877439010,-210.8579649,0.00104109,120]
[358259168,1744877439019,-500.0,0.00104109,120]
[358259170,1744877439028,-500.0,0.00104109,120]
[358259171,1744877439038,-500.0,0.00104109,120]
[358259173,1744877439047,-500.0,0.00104109,120]
[358259175,1744877439056,-500.0,0.00104109,120]
[358259177,1744877439065,-500.0,0.00104109,120]
[358259179,1744877439075,-500.0,0.00104109,120]
[358259180,1744877439083,-301.86,0.00104109,120]
[358259182,1744877439093,-641.99,0.00104109,120]
[358259184,1744877439102,-500.0,0.00104109,120]
[358259186,1744877439111,-380.52,0.00104109,120]
[358259188,1744877439121,-1704.96,0.00104109,120]
[358259190,1744877439130,-1117.16,0.00104109,120]
[358259191,1744877439139,-1306.39,0.00104109,120]
[358259193,1744877439149,-583.72,0.00104109,120]
[358259195,1744877439158,-572.17,0.00104109,120]
[358259197,1744877439167,-500.0,0.00104109,120]
[358259199,1744877439176,-500.0,0.00104109,120]
[358259201,1744877439186,-500.0,0.00104109,120]
[358259202,1744877439195,-500.0,0.00104109,120]
[358259206,1744877439204,-511.44,0.00104109,120]
[358259208,1744877439213,-500.0,0.00104109,120]
[358259210,1744877439222,-597.13,0.00104109,120]
[358259212,1744877439232,-500.0,0.00104109,120]
[358259213,1744877439241,-500.0,0.00104109,120]
[358259215,1744877439250,-486.23,0.00104109,120]
[358259216,1744877439259,-500.0,0.00104109,120]
[358259218,1744877439268,-511.31,0.00104109,120]
[358259219,1744877439278,-2039.5,0.00104109,120]
[358259221,1744877439287,-500.0,0.00104109,120]
[358259223,1744877439295,-996.39,0.00104109,120]
[358259225,1744877439304,-637.71,0.00104109,120]
[358259227,1744877439314,-598.35,0.00104109,120]
[358259228,1744877439323,-575.34,0.00104109,120]
[358259230,1744877439332,-719.55,0.00104109,120]
[358259232,1744877439341,-500.0,0.00104109,120]
[358259234,1744877439350,-573.78,0.00104109,30]
[358259236,1744877439359,-6247.1410848,0.00109559,8]
[358259237,1744877439368,-152.0,0.0012114,120]
[358259239,1744877439377,-364.0,0.0012114,120]
[358259241,1744877439386,-3965.0,0.0012114,120]
[358259243,1744877439395,-6247.1410848,0.00121421,9]
[358259244,1744877439406,-10443.385552,0.00121431,13]
[358259246,1744877439415,-6247.1410848,0.00121441,9]
[358259248,1744877439424,-1288.0,0.00121451,120]
[358259250,1744877439434,-791.0,0.00121451,2]
[358259252,1744877439443,-386.008,0.00121451,120]
[358259254,1744877439452,-4149.0,0.00121451,120]
[358259255,1744877439461,-6247.1410848,0.001274,9]
[358259257,1744877439471,-10443.385552,0.00127411,18]
[358259259,1744877439480,-6247.1410848,0.00127411,9]
[358259261,1744877439490,-2000.0,0.00128,120]
[358259263,1744877439499,-6247.1410848,0.00128737,9]
[358259264,1744877439508,-10443.385552,0.00128747,19]
[358259266,1744877439518,-12494.2821696,0.00128747,9]
[358259268,1744877439528,-10443.385552,0.00128757,19]
[358259270,1744877439539,-18741.4232544,0.00128757,9]
[358259272,1744877439548,-500.0,0.00128767,120]
[358259274,1744877439558,-500.0,0.00128767,120]
[358259275,1744877439567,-505.34,0.00128767,120]
[358259277,1744877439576,-500.0,0.00128767,120]
[358259279,1744877439586,-500.0,0.00128767,120]
[358259281,1744877439595,-2824.69,0.00128767,120]
[358259282,1744877439606,-500.0,0.00128767,120]
[358259284,1744877439616,-500.0,0.00128767,120]
[358259286,1744877439626,-500.0,0.00128767,120]
[358259288,1744877439635,-500.0,0.00128767,120]
[358259290,1744877439644,-849.71,0.00128767,120]
[358259291,1744877439654,-622.76018417,0.00128767,120]
[358259293,1744877439663,-500.0,0.00128767,120]
[358259295,1744877439672,-500.0,0.00128767,120]
[358259297,1744877439682,-500.0,0.00128767,120]
[358259299,1744877439692,-500.0,0.00128767,120]
[358259301,1744877439701,-841.15,0.00128767,120]
[358259302,1744877439709,-500.0,0.00128767,120]
[358259304,1744877439719,-783.83,0.00128767,120]
[358259306,1744877439728,-661.7,0.00128767,120]
[358259308,1744877439738,-500.0,0.00128767,120]
[358259310,1744877439747,-500.0,0.00128767,120]
[358259311,1744877439757,-179.62940651,0.00128767,120]
[358259313,1744877439766,-500.0,0.00128767,120]
[358259315,1744877439775,-500.0,0.00128767,120]
[358259317,1744877439784,-500.0,0.00128767,120]
[358259319,1744877439793,-500.0,0.00128767,120]
[358259320,1744877439803,-795.96,0.00128767,120]
[358259322,1744877439812,-500.0,0.00128767,120]
[358259324,1744877439821,-500.0,0.00128767,120]
[358259326,1744877439830,-500.0,0.00128767,120]
[358259328,1744877439839,-500.0,0.00128767,120]
[358259330,1744877439848,-500.0,0.00128767,120]
[358259331,1744877439857,-396.48,0.00128767,120]
[358259333,1744877439866,-500.0,0.00128767,120]
[358259335,1744877439876,-500.0,0.00128767,120]
[358259337,1744877439885,-500.0,0.00128767,120]
[358259339,1744877439894,-500.0,0.00128767,120]
[358259340,1744877439903,-500.0,0.00128767,120]
[358259342,1744877439912,-500.0,0.00128767,120]
[358259344,1744877439921,-500.0,0.00128767,120]
[358259346,1744877439931,-1704.96,0.00128767,120]
[358259348,1744877439940,-1117.16,0.00128767,120]
[358259350,1744877439950,-1306.39,0.00128767,120]
[358259351,1744877439959,-583.72,0.00128767,120]
[358259353,1744877439968,-572.17,0.00128767,120]
[358259355,1744877439977,-500.0,0.00128767,120]
[358259357,1744877439987,-500.0,0.00128767,120]
[358259359,1744877439996,-500.0,0.00128767,120]
[358259360,1744877440005,-566.70350596,0.00128767,120]
[358259362,1744877440016,-597.13,0.00128767,120]
[358259364,1744877440025,-500.0,0.00128767,120]
[358259367,1744877440035,-500.0,0.00128767,120]
[358259368,1744877440044,-2039.5,0.00128767,120]
[358259370,1744877440054,-500.0,0.00128767,120]
[358259372,1744877440063,-996.39,0.00128767,120]
[358259374,1744877440073,-637.71,0.00128767,120]
[358259376,1744877440082,-598.35,0.00128767,120]
[358259378,1744877440091,-575.34,0.00128767,120]
[358259380,1744877440100,-719.55,0.00128767,120]
[358259382,1744877440110,-500.0,0.00128767,120]
[358259384,1744877440119,-573.78,0.00128767,30]
[358259386,1744877440129,-6247.1410848,0.00139686,19]
[358259388,1744877440138,-10443.385552,0.00139696,29]
[358259390,1744877440147,-18741.4232544,0.00139706,19]
[358259392,1744877440156,-20886.7711039,0.00139716,29]
[358259393,1744877440165,-12494.2821696,0.00139716,19]
[358259394,1744877440174,-151.0,0.00139726,120]
[358259395,1744877440184,-152.217092,0.00139726,120]
[358259396,1744877440193,-162.802278,0.00139726,120]
[358259397,1744877440203,-151.0,0.00139726,120]
[358259399,1744877440212,-151.0,0.00139726,120]
[358259400,1744877440222,-151.0,0.00139726,120]
[358259401,1744877440230,-151.0,0.00139726,120]
[358259402,1744877440239,-151.0,0.00139726,120]
[358259403,1744877440247,-298.31248,0.00139726,120]
[358259404,1744877440255,-304.299265,0.00139726,120]
[358259405,1744877440264,-304.299265,0.00139726,120]
[358259406,1744877440272,-304.299265,0.00139726,120]
[358259407,1744877440281,-304.299265,0.00139726,120]
[358259408,1744877440289,-304.299265,0.00139726,120]
[358259409,1744877440297,-304.299265,0.00139726,120]
[358259410,1744877440305,-304.299265,0.00139726,120]
[358259411,1744877440315,-304.299265,0.00139726,120]
[358259412,1744877440323,-304.299265,0.00139726,120]
[358259413,1744877440332,-304.299265,0.00139726,120]
[358259414,1744877440341,-304.299265,0.00139726,120]
[358259415,1744877440349,-304.299265,0.00139726,120]
[358259416,1744877440358,-304.299265,0.00139726,120]
[358259417,1744877440367,-304.299265,0.00139726,120]
[358259418,1744877440375,-304.299265,0.00139726,120]
[358259419,1744877440384,-304.299265,0.00139726,120]
[358259420,1744877440393,-304.299265,0.00139726,120]
[358259421,1744877440401,-304.299265,0.00139726,120]
[358259422,1744877440410,-304.299265,0.00139726,120]
[358259423,1744877440418,-567.945453,0.00139726,120]
[358259424,1744877440427,-567.945453,0.00139726,120]
[358259425,1744877440435,-567.945453,0.00139726,120]
[358259426,1744877440443,-567.945453,0.00139726,120]
[358259427,1744877440452,-567.945453,0.00139726,120]
[358259428,1744877440461,-567.945453,0.00139726,120]
[358259429,1744877440469,-567.945453,0.00139726,120]
[358259430,1744877440477,-567.945453,0.00139726,120]
[358259431,1744877440486,-567.945453,0.00139726,120]
[358259432,1744877440495,-567.945453,0.00139726,120]
[358259433,1744877440504,-567.945453,0.00139726,120]
[358259434,1744877440551,-567.945453,0.00139726,120]
[358259435,1744877440561,-567.945453,0.00139726,120]
[358259437,1744877440571,-567.945453,0.00139726,120]
[358259438,1744877440581,-567.945453,0.00139726,120]
[358259439,1744877440591,-567.945453,0.00139726,120]
[358259440,1744877440599,-567.945453,0.00139726,120]
[358259442,1744877440609,-567.945453,0.00139726,120]
[358259443,1744877440616,-567.945453,0.00139726,120]
[358259446,1744877440626,-151.0,0.00139726,120]
[358259447,1744877440635,-151.0,0.00139726,120]
[358259449,1744877440643,-151.0,0.00139726,120]
[358259451,1744877440650,-230.815036,0.00139726,120]
[358259453,1744877440659,-151.0,0.00139726,120]
[358259455,1744877440667,-151.0,0.00139726,120]
[358259458,1744877440676,-151.0,0.00139726,120]
[358259460,1744877440685,-151.0,0.00139726,120]
[358259462,1744877440693,-151.0,0.00139726,120]
[358259464,1744877440701,-151.0,0.00139726,120]
[358259466,1744877440710,-153.062666,0.00139726,120]
[358259468,1744877440720,-151.0,0.00139726,120]
[358259470,1744877440730,-151.0,0.00139726,120]
[358259472,1744877440741,-151.0,0.00139726,120]
[358259474,1744877440751,-151.0,0.00139726,120]
[358259476,1744877440761,-151.0,0.00139726,120]
[358259478,1744877440770,-151.0,0.00139726,120]
[358259480,1744877440780,-151.0,0.00139726,120]
[358259482,1744877440789,-151.0,0.00139726,120]
[358259484,1744877440798,-151.0,0.00139726,120]
[358259486,1744877440807,-151.0,0.00139726,120]
[358259488,1744877440816,-151.0,0.00139726,120]
[358259490,1744877440826,-151.0,0.00139726,120]
[358259492,1744877440835,-196.356264,0.00139726,120]
[358259494,1744877440844,-151.0,0.00139726,120]
[358259496,1744877440854,-151.0,0.00139726,120]
[358259498,1744877440863,-151.0,0.00139726,120]
[358259500,1744877440872,-151.0,0.00139726,120]
[358259502,1744877440882,-151.0,0.00139726,120]
[358259504,1744877440891,-151.0,0.00139726,120]
[358259506,1744877440900,-151.0,0.00139726,120]
[358259508,1744877440909,-151.0,0.00139726,120]
[358259510,1744877440919,-230.274232,0.00139726,120]
[358259512,1744877440929,-159.541663,0.00139726,120]
[358259514,1744877440938,-151.0,0.00139726,120]
[358259516,1744877440947,-155.083901,0.00139726,120]
[358259518,1744877440956,-152.82122,0.00139726,90]
[358259520,1744877440965,-151.0,0.00139726,120]
[358259522,1744877440975,-151.0,0.00139726,120]
[358259524,1744877440984,-151.0,0.00139726,120]
[358259526,1744877440993,-151.0,0.00139726,120]
[358259528,1744877441003,-151.0,0.00139726,120]
[358259530,1744877441012,-151.0,0.00139726,120]
[358259532,1744877441021,-151.0,0.00139726,120]
[358259534,1744877441030,-151.0,0.00139726,120]
[358259536,1744877441039,-151.0,0.00139726,120]
[358259537,1744877441047,-151.0,0.00139726,120]
[358259539,1744877441056,-151.0,0.00139726,120]
[358259541,1744877441065,-151.0,0.00139726,120]
[358259543,1744877441074,-151.0,0.00139726,120]
[358259545,1744877441083,-220.754072,0.00139726,120]
[358259547,1744877441093,-151.0,0.00139726,120]
[358259549,1744877441102,-151.0,0.00139726,120]
[358259551,1744877441112,-151.0,0.00139726,120]
[358259553,1744877441120,-248.68497201,0.00151499,120]
[358259555,1744877441130,-18741.4232544,0.00153404,30]
[358259557,1744877441139,-20886.7711039,0.00153414,30]
[358259559,1744877441149,-12494.2821696,0.00153414,30]
[358259561,1744877441158,-221.8,0.00153424,120]
[358259563,1744877441168,-500.0,0.00153424,120]
[358259565,1744877441177,-505.34,0.00153424,120]
[358259567,1744877441187,-500.0,0.00153424,120]
[358259569,1744877441196,-500.0,0.00153424,120]
[358259571,1744877441205,-2824.69,0.00153424,120]
[358259573,1744877441215,-500.0,0.00153424,120]
[358259575,1744877441224,-500.0,0.00153424,120]
[358259577,1744877441234,-500.0,0.00153424,120]
[358259579,1744877441243,-500.0,0.00153424,120]
[358259581,1744877441252,-849.71,0.00153424,120]
[358259583,1744877441261,-500.0,0.00153424,120]
[358259585,1744877441271,-500.0,0.00153424,120]
[358259587,1744877441280,-181.16631245,0.00153424,120]
[358259589,1744877441289,-500.0,0.00153424,120]
[358259591,1744877441299,-841.15,0.00153424,120]
[358259593,1744877441307,-783.83,0.00153424,120]
[358259595,1744877441317,-661.7,0.00153424,120]
[358259597,1744877441326,-500.0,0.00153424,120]
[358259599,1744877441335,-500.0,0.00153424,120]
[358259601,1744877441344,-795.96,0.00153424,120]
[358259603,1744877441354,-500.0,0.00153424,120]
[358259605,1744877441363,-500.0,0.00153424,120]
[358259607,1744877441373,-500.0,0.00153424,120]
[358259609,1744877441383,-648.25,0.00153424,120]
[358259611,1744877441392,-500.0,0.00153424,120]
[358259613,1744877441402,-500.0,0.00153424,120]
[358259615,1744877441411,-500.0,0.00153424,120]
[358259617,1744877441421,-500.0,0.00153424,120]
[358259619,1744877441431,-500.0,0.00153424,120]
[358259621,1744877441441,-500.0,0.00153424,120]
[358259623,1744877441450,-500.0,0.00153424,120]
[358259625,1744877441460,-1704.96,0.00153424,120]
[358259627,1744877441470,-1117.16,0.00153424,120]
[358259629,1744877441479,-1306.39,0.00153424,120]
[358259631,1744877441488,-583.72,0.00153424,120]
[358259633,1744877441498,-572.17,0.00153424,120]
[358259635,1744877441507,-500.0,0.00153424,120]
[358259637,1744877441518,-500.0,0.00153424,120]
[358259639,1744877441530,-500.0,0.00153424,120]
[358259641,1744877441540,-597.13,0.00153424,120]
[358259642,1744877441550,-500.0,0.00153424,120]
[358259644,1744877441560,-500.0,0.00153424,120]
[358259646,1744877441571,-2039.5,0.00153424,120]
[358259649,1744877441580,-500.0,0.00153424,120]
[358259650,1744877441590,-996.39,0.00153424,120]
[358259653,1744877441599,-637.71,0.00153424,120]
[358259655,1744877441615,-598.35,0.00153424,120]
[358259657,1744877441636,-575.34,0.00153424,120]
[358259659,1744877441647,-719.55,0.00153424,120]
[358259660,1744877441657,-500.0,0.00153424,120]
[358259662,1744877441666,-573.78,0.00153424,30]
[358259665,1744877441675,-10443.385552,0.00178072,30]
[358259666,1744877441685,-617.96242305,0.00178072,30]
[358259668,1744877441695,-500.0,0.00178082,120]
[358259670,1744877441704,-505.34,0.00178082,120]
[358259672,1744877441713,-500.0,0.00178082,120]
[358259674,1744877441722,-500.0,0.00178082,120]
[358259676,1744877441731,-2824.69,0.00178082,120]
[358259678,1744877441743,-500.0,0.00178082,120]
[358259680,1744877441752,-500.0,0.00178082,120]
[358259682,1744877441761,-500.0,0.00178082,120]
[358259684,1744877441771,-500.0,0.00178082,120]
[358259686,1744877441780,-849.71,0.00178082,120]
[358259688,1744877441790,-500.0,0.00178082,120]
[358259690,1744877441799,-500.0,0.00178082,120]
[358259692,1744877441808,-493.12712398,0.00178082,120]
[358259694,1744877441817,-841.15,0.00178082,120]
[358259696,1744877441827,-783.83,0.00178082,120]
[358259698,1744877441836,-661.7,0.00178082,120]
[358259700,1744877441847,-500.0,0.00178082,120]
[358259702,1744877441855,-795.96,0.00178082,120]
[358259704,1744877441864,-500.0,0.00178082,120]
[358259706,1744877441874,-500.0,0.00178082,120]
[358259708,1744877441883,-500.0,0.00178082,120]
[358259710,1744877441893,-500.0,0.00178082,120]
[358259712,1744877441903,-500.0,0.00178082,120]
[358259714,1744877441913,-500.0,0.00178082,120]
[358259716,1744877441922,-500.0,0.00178082,120]
[358259718,1744877441931,-500.0,0.00178082,120]
[358259720,1744877441941,-375.56,0.00178082,120]
[358259722,1744877441950,-1704.96,0.00178082,120]
[358259724,1744877441959,-1117.16,0.00178082,120]
[358259726,1744877441968,-1306.39,0.00178082,120]
[358259728,1744877441977,-583.72,0.00178082,120]
[358259730,1744877441987,-572.17,0.00178082,120]